bitfinex/quotes_SOLUSD_20240711
["timestamp","ask_amount","ask_price","bid_price","bid_amount"]
[1720711451774,13.52,141.16,141.14,7.0851]
[1720711452609,13.52,141.16,141.13,40.2402]
[1720711452898,13.52,141.16,141.11,42.0204]
[1720711452899,8.75186902,141.16,141.11,7.0862]
[1720711453089,13.52,141.13,141.11,7.0862]
[1720711453286,13.52,141.13,141.1,24.8042]
[1720711453486,52.0846,141.15,141.09,23.28472015]
[1720711453487,58.52,141.12,141.09,23.28472015]
[1720711453696,13.52,141.11,141.09,15.9077]
[1720711453868,13.52,141.1,141.07,24.8091]
[1720711454064,13.52,141.09,141.07,24.8091]
[1720711454268,13.52,141.09,141.07,17.7206]
[1720711454698,13.52,141.09,141.07,24.8092]
[1720711454880,1.66766902,141.11,141.07,24.8092]
[1720711455079,13.52,141.09,141.07,24.8092]
[1720711455285,13.52,141.09,141.07,17.7206]
[1720711456268,13.52,141.09,141.06,7.0889]
[1720711456471,45.0,141.08,141.06,7.0889]
[1720711457472,45.0,141.08,141.04,51.9964]
[1720711457672,1.66766902,141.11,141.07,17.7216]
[1720711457895,1.66766902,141.11,141.07,24.8102]
[1720711458474,46.66766902,141.12,141.07,24.8102]
[1720711459101,53.75386902,141.12,141.07,17.7216]
[1720711459386,7.0867,141.11,141.05,7.0895]
[1720711459584,46.66766902,141.1,141.05,7.0895]
[1720711459790,45.0,141.1,141.07,17.7216]
[1720711459997,37.25476537,141.13,141.08,1.41601471]
[1720711459998,2.92896537,141.13,141.08,1.41601471]
[1720711460303,7.0856,141.13,141.09,17.719]
[1720711460603,7.0856,141.13,141.08,7.088]
[1720711461309,45.0,141.12,141.08,7.088]
[1720711461626,52.0861,141.12,141.07,7.0885]
[1720711462183,8.75436902,141.11,141.06,24.8109]
[1720711462500,45.0,141.1,141.07,7.0885]
[1720711462676,45.0,141.1,141.06,24.8107]
[1720711462876,52.0867,141.11,141.06,24.8107]
[1720711463375,1.66766902,141.1,141.06,24.8107]
[1720711463571,8.75486902,141.1,141.06,17.7218]
[1720711463775,45.0,141.09,141.06,17.7218]
[1720711464279,45.0,141.09,141.06,24.8108]
[1720711464471,45.0,141.1,141.06,24.8108]
[1720711465005,46.66766902,141.1,141.06,24.8108]
[1720711465171,53.75476902,141.1,141.06,17.7218]
[1720711466081,1.66766902,141.09,141.06,17.7218]
[1720711467208,46.66766902,141.1,141.06,24.8108]
[1720711468810,46.66766902,141.1,141.07,7.0884]
[1720711468811,45.0,141.1,141.07,7.0884]
[1720711468981,46.66766902,141.11,141.07,7.0884]
[1720711469183,53.75436902,141.11,141.06,24.8108]
[1720711469480,8.75486902,141.1,141.06,17.7218]
[1720711469693,45.0,141.09,141.05,7.0895]
[1720711469898,1.66766902,141.08,141.05,7.0895]
[1720711470208,45.0,141.09,141.05,7.0895]
[1720711472091,45.0,141.09,141.04,23.6362]
[1720711472614,1.66766902,141.08,141.03,17.7257]
[1720711472910,1.66766902,141.07,141.03,17.7257]
[1720711473218,46.66766902,141.07,141.03,17.7257]
[1720711473421,53.75636902,141.07,141.02,7.091]
[1720711473610,1.66766902,141.06,141.02,7.091]
[1720711473812,1.66766902,141.06,141.02,24.8188]
[1720711474011,1.66766902,141.06,141.03,7.0904]
[1720711474327,45.0,141.07,141.03,7.0904]
[1720711474811,45.0,141.08,141.03,7.0904]
[1720711475216,52.0882,141.08,141.03,7.0904]
[1720711475600,1.66766902,141.07,141.02,24.8188]
[1720711476221,8.75646902,141.07,141.02,24.8188]
[1720711476416,52.0894,141.06,140.99,24.002]
[1720711476720,1.66766902,141.07,141.01,7.0916]
[1720711476721,46.66766902,141.05,141.01,7.0916]
[1720711476902,45.0,141.05,141.01,24.8207]
[1720711477103,45.0,141.06,141.01,24.8207]
[1720711477315,1.66766902,141.05,141.01,24.8207]
[1720711478716,13.55,141.04,141.01,24.8207]
[1720711479300,45.0,141.06,141.02,7.0908]
[1720711479507,13.55,141.05,141.02,7.0908]
[1720711479706,45.0,141.07,141.02,7.0908]
[1720711479905,13.55,141.06,141.01,31.2791]
[1720711480221,45.0,141.05,141.02,7.091]
[1720711480720,58.55,141.05,141.01,24.8207]
[1720711481641,15.21766902,141.04,141.01,24.8207]
[1720711481918,15.21766902,141.04,140.98,17.2331568]
[1720711481919,13.55,141.02,140.98,17.2331568]
[1720711482126,13.55,141.01,140.98,17.2331568]
[1720711482312,45.0,141.03,140.98,24.3261568]
[1720711482518,58.55,141.03,140.99,24.8239]
[1720711483120,58.55,141.03,140.98,30.7831568]
[1720711483121,1.66766902,141.02,140.98,17.2331568]
[1720711483316,13.55,141.01,140.98,17.2331568]
[1720711483628,15.21766902,141.02,140.98,17.2331568]
[1720711483929,13.55,141.0,140.98,0.8261568]
[1720711484128,13.55,140.99,140.98,0.8261568]
[1720711484423,58.55,140.99,140.98,0.8261568]
[1720711485526,45.0,140.99,140.98,0.8261568]
[1720711485710,60.38766902,140.99,140.91,400.85]
[1720711485910,53.93096902,140.98,140.92,7.0961]
[1720711486096,13.55,140.96,140.93,7.0956]
[1720711486297,45.0,140.98,140.94,13.55]
[1720711486530,13.55,140.98,140.93,17.7389]
[1720711486730,13.55,140.97,140.93,24.8344]
[1720711487025,45.0,140.96,140.93,16.2389]
[1720711487213,45.0,140.96,140.91,7.0966]
[1720711487527,1.66766902,140.95,140.9,17.7427]
[1720711487829,1.66766902,140.95,140.9,16.2427]
[1720711488032,45.0,140.96,140.9,16.2427]
[1720711488237,1.66766902,140.95,140.91,7.0964]
[1720711488415,1.66766902,140.95,140.91,5.5964]
[1720711488617,1.66766902,140.95,140.91,7.01548796]
[1720711488817,1.66766902,140.95,140.91,5.5964]
[1720711489026,1.66766902,140.95,140.9,16.2427]
[1720711489411,45.0,140.96,140.9,100.0]
[1720711489907,45.0,140.97,140.9,100.0]
[1720711490307,45.0,140.97,140.89,116.0441]
[1720711490714,1.66766902,140.96,140.89,16.0441]
[1720711491039,8.76266902,140.95,140.89,39.3848]
[1720711491208,45.0,140.94,140.89,32.2876]
[1720711491609,53.76236902,140.95,140.89,37.8849]
[1720711491811,52.0947,140.95,140.9,7.0971]
[1720711492024,52.0948,140.95,140.89,37.8851]
[1720711492220,1.66766902,140.94,140.89,37.8851]
[1720711492421,52.0948,140.95,140.9,7.0971]
[1720711492628,45.0,140.95,140.9,7.0971]
[1720711492821,46.66766902,140.95,140.9,7.0971]
[1720711493937,53.76236902,140.95,140.89,37.8852]
[1720711494440,52.0947,140.95,140.89,37.8852]
[1720711495445,45.0,140.95,140.9,7.0971]
[1720711495840,45.0,140.95,140.91,7.0962]
[1720711496152,1.66766902,140.98,140.93,17.739]
[1720711496355,4.59085295,141.0,140.95,7.0945]
[1720711496542,11.68335295,141.0,140.94,7.0948]
[1720711496738,31.71085295,141.0,140.89,13.0441]
[1720711497060,28.78766902,141.0,140.92,17.7403]
[1720711497267,7.0933,140.98,140.92,24.8365]
[1720711497431,1.66766902,140.97,140.92,24.8365]
[1720711498539,46.66766902,140.97,140.92,24.8365]
[1720711498856,45.0,140.97,140.94,24.8326]
[1720711499068,4.57878673,141.01,140.95,1.41866959]
[1720711499356,8.75936902,141.01,140.96,8.51225513]
[1720711499550,1.66766902,141.01,140.96,8.51225513]
[1720711499853,1.66766902,141.01,140.96,1.41855513]
[1720711500151,7.0925,141.0,140.96,1.41855513]
[1720711500338,1.66766902,141.02,140.96,1.41855513]
[1720711500544,1.66766902,141.01,140.95,7.0945]
[1720711500745,1.66766902,141.01,140.96,7.0941]
[1720711500946,1.66766902,141.01,140.95,7.0946]
[1720711501143,1.66766902,141.01,140.94,17.7379]
[1720711501345,1.66766902,141.01,140.9,100.0]
[1720711501662,7.093,140.99,140.93,24.8342]
[1720711501859,46.66766902,140.98,140.93,24.8342]
[1720711502054,46.66766902,140.98,140.9,117.7419]
[1720711502243,8.76176902,140.97,140.9,17.7419]
[1720711502441,45.0,140.96,140.92,7.0961]
[1720711502751,45.0,140.98,140.92,17.7402]
[1720711503046,45.0,140.98,140.93,7.0956]
[1720711503258,7.0942,140.96,140.89,30.7874]
[1720711503440,53.76096902,140.98,140.89,13.0441]
[1720711503639,53.76096902,140.98,140.92,7.096]
[1720711504153,46.66766902,140.98,140.93,7.0955]
[1720711504943,53.76086902,140.98,140.92,7.0961]
[1720711505663,53.76086902,140.98,140.93,7.0956]
[1720711505861,45.0,140.98,140.95,7.0946]
[1720711506737,45.0,140.98,140.93,7.0953]
[1720711507044,45.0,140.98,140.94,17.7377]
[1720711507248,45.0,140.98,140.96,7.0941]
[1720711508152,45.0,140.98,140.95,7.0945]
[1720711508542,1.66766902,141.01,140.96,17.7354]
[1720711508747,1.66766902,141.02,140.97,7.0935]
[1720711509837,8.75896902,141.02,140.97,7.0935]
[1720711510167,1.66766902,141.01,140.97,7.0936]
[1720711511048,45.0,141.01,140.97,7.0936]
[1720711511248,45.0,141.02,140.97,7.0936]
[1720711511461,46.66766902,141.02,140.97,7.0936]
[1720711511670,46.66766902,141.02,140.98,7.0929]
[1720711511872,1.66766902,141.05,140.98,17.7323]
[1720711512045,1.66766902,141.04,141.0,17.7303]
[1720711512372,1.66766902,141.04,141.0,24.8224]
[1720711512577,1.66766902,141.05,141.0,24.8224]
[1720711512862,1.66766902,141.07,141.02,17.7277]
[1720711513075,1.66766902,141.07,141.03,1.41795919]
[1720711513451,8.75636902,141.07,141.02,17.7277]
[1720711513656,8.75636902,141.07,141.02,26.23633903]
[1720711513857,1.66766902,141.07,141.02,26.23633903]
[1720711514058,8.75586902,141.08,141.03,7.0906]
[1720711514246,1.66766902,141.08,141.03,7.0906]
[1720711514659,8.75586902,141.08,141.03,7.0906]
[1720711515843,8.75586902,141.08,141.02,24.8187]
[1720711516044,1.66766902,141.07,141.02,24.8187]
[1720711516571,20.29375412,141.09,141.04,17.7251]
[1720711516870,45.0,141.08,141.04,17.7251]
[1720711517357,45.0,141.08,141.05,1.30995358]
[1720711517549,1.66766902,141.1,141.06,17.7221]
[1720711517744,1.66766902,141.11,141.07,1.30976786]
[1720711518457,8.75496902,141.1,141.07,1.30976786]
[1720711518771,1.66766902,141.09,141.04,7.09]
[1720711518948,7.0883,141.08,141.03,24.8164]
[1720711519274,53.75636902,141.07,141.01,29.7847]
[1720711519446,8.75636902,141.07,141.01,29.7847]
[1720711519641,7.0896,141.05,141.0,17.7293]
[1720711519846,1.66766902,141.04,141.0,24.8214]
[1720711520064,1.66766902,141.04,141.0,17.7293]
[1720711520065,45.0,141.04,141.0,17.7293]
[1720711520268,1.66766902,141.03,141.0,17.7293]
[1720711520961,1.66766902,141.03,140.98,387.3]
[1720711521166,7.0911,141.02,140.97,17.7333]
[1720711521367,1.66766902,141.01,140.97,17.7333]
[1720711521561,46.66766902,141.01,140.97,17.7333]
[1720711521763,46.66766902,141.01,140.97,24.8269]
[1720711521949,1.66766902,141.01,140.97,24.8269]
[1720711522144,45.0,141.02,140.98,7.093]
[1720711522455,45.0,141.03,140.98,7.093]
[1720711522669,46.66766902,141.03,140.98,7.093]
[1720711522872,53.75836902,141.03,140.97,24.8269]
[1720711523074,0.17,141.02,140.97,24.8269]
[1720711523269,1.66766902,141.01,140.97,24.8269]
[1720711523449,1.66766902,141.01,140.97,17.7333]
[1720711523654,46.66766902,141.01,140.97,17.7333]
[1720711524055,53.75936902,141.01,140.95,7.0946]
[1720711524477,7.0922,141.0,140.95,7.0946]
[1720711524652,46.66766902,140.99,140.95,7.0946]
[1720711524852,1.66766902,141.0,140.96,7.094]
[1720711525767,6.2441,141.02,140.97,7.0935]
[1720711526457,8.92966902,141.01,140.96,17.735]
[1720711526773,8.92966902,141.01,140.93,24.8342]
[1720711526774,7.0927,140.99,140.93,24.8342]
[1720711526973,1.66766902,140.98,140.93,24.8342]
[1720711527171,46.66766902,140.98,140.93,24.8342]
[1720711527571,46.66766902,140.98,140.93,17.7387]
[1720711527760,46.66766902,140.98,140.93,24.834]
[1720711527960,45.0,140.98,140.95,7.0946]
[1720711528163,46.66766902,140.99,140.95,7.0946]
[1720711528460,46.66766902,141.0,140.97,7.0933]
[1720711528667,45.0,141.0,140.95,17.7365]
[1720711528867,45.0,141.0,140.97,7.0936]
[1720711529258,45.0,141.0,140.95,17.7365]
[1720711529579,45.0,141.0,140.95,24.8311]
[1720711530371,45.0,141.0,140.96,7.0941]
[1720711530982,45.0,141.0,140.97,7.0936]
[1720711531484,45.0,141.0,140.96,7.094]
[1720711531669,45.0,141.0,140.95,17.7365]
[1720711531670,1.66766902,140.99,140.95,26.24731937]
[1720711531869,46.66766902,141.0,140.96,1.41621889]
[1720711532067,46.66766902,141.0,140.96,8.51031889]
[1720711532266,45.0,141.0,140.96,8.51031889]
[1720711532474,1.66766902,140.99,140.95,24.831]
[1720711533264,1.66766902,140.99,140.95,17.7365]
[1720711534884,1.66766902,140.99,140.95,24.8311]
[1720711535085,1.66766902,140.99,140.96,7.0941]
[1720711535285,45.0,141.0,140.97,7.0935]
[1720711535485,45.0,141.0,140.97,8.51219611]
[1720711536081,45.0,141.0,140.98,7.093]
[1720711536461,45.0,141.0,140.97,19.15229611]
[1720711536462,45.0,141.0,140.97,26.24589611]
[1720711536663,45.0,141.0,140.97,24.8272]
[1720711537063,45.0,141.0,140.97,17.7336]
[1720711539181,1.66766902,140.99,140.95,7.0945]
[1720711540495,45.0,141.0,140.97,7.0935]
[1720711541094,45.0,141.0,140.96,24.8289]
[1720711541392,46.66766902,141.01,140.96,24.8289]
[1720711542106,23.0206,141.0,140.9,135.4839]
[1720711542269,7.0933,140.98,140.9,135.4839]
[1720711542469,1.66766902,140.98,140.9,135.4839]
[1720711542673,45.0,140.97,140.94,24.8325]
[1720711543679,1.66766902,140.96,140.91,17.7409]
[1720711544071,1.66766902,140.96,140.92,7.0961]
[1720711545092,1.66766902,140.95,140.91,24.8374]
[1720711545407,1.66766902,140.95,140.86,100.0]
[1720711545579,0.17,140.94,140.88,7.0981]
[1720711545772,1.66766902,140.93,140.88,7.0981]
[1720711545978,1.66766902,140.92,140.88,7.0981]
[1720711546192,1.66766902,140.92,140.89,7.0976]
[1720711546394,1.66766902,140.92,140.88,17.745]
[1720711546701,45.0,140.93,140.85,16.5924]
[1720711546888,1.66766902,140.92,140.88,7.0978]
[1720711547201,1.66766902,140.92,140.87,24.8445]
[1720711548086,1.66766902,140.92,140.87,17.7459]
[1720711548284,1.66766902,140.92,140.85,16.5924]
[1720711548603,1.66766902,140.92,140.87,7.0987]
[1720711549180,8.76396902,140.92,140.86,17.747]
[1720711549386,52.2667,140.91,140.84,0.8261568]
[1720711549581,46.66766902,140.9,140.84,2.24594714]
[1720711549899,1.83766902,140.91,140.85,7.0996]
[1720711550291,1.83766902,140.91,140.86,7.099]
[1720711551301,46.83766902,140.91,140.86,7.099]
[1720711551809,1.66766902,140.91,140.87,7.0984]
[1720711551987,46.66766902,140.92,140.88,8.51512221]
[1720711552186,1.66766902,140.92,140.88,8.51512221]
[1720711552707,1.66766902,140.93,140.89,7.0976]
[1720711553781,1.66766902,140.92,140.84,0.8261568]
[1720711553980,1.66766902,140.92,140.87,7.0982]
[1720711554396,1.66766902,140.92,140.88,7.0982]
[1720711554598,1.66766902,140.93,140.88,7.0982]
[1720711554806,1.66766902,140.92,140.87,24.8447]
[1720711555390,1.66766902,140.92,140.88,7.098]
[1720711555794,1.66766902,140.93,140.88,7.098]
[1720711556009,46.66766902,140.93,140.88,7.098]
[1720711556811,1.66766902,140.92,140.88,7.098]
[1720711556991,1.66766902,140.92,140.87,17.7461]
[1720711557193,8.76386902,140.92,140.86,7.0988]
[1720711557402,45.0,140.91,140.86,7.0988]
[1720711557608,45.0,140.91,140.87,7.0987]
[1720711558401,46.66766902,140.92,140.88,7.0981]
[1720711558613,46.66766902,140.92,140.87,7.0986]
[1720711558801,53.76386902,140.92,140.87,7.0986]
[1720711559115,8.76456902,140.91,140.86,17.7472]
[1720711559286,8.76456902,140.91,140.86,24.8464]
[1720711559287,45.0,140.9,140.86,24.8464]
[1720711559486,1.66766902,140.89,140.86,17.7472]
[1720711560097,1.66766902,140.89,140.86,24.8462]
[1720711560389,1.66766902,140.89,140.84,7.9262568]
[1720711560611,8.76546902,140.89,140.84,7.9262568]
[1720711560911,45.0,140.88,140.85,7.0997]
[1720711561112,1.66766902,140.87,140.84,7.9261568]
[1720711561414,21.2387,140.88,140.84,0.8261568]
[1720711561614,45.0,140.87,140.86,7.0992]
[1720711562017,1.66766902,140.91,140.88,17.7455]
[1720711562315,8.76236902,140.95,140.89,7.0976]
[1720711562786,8.76236902,140.95,140.9,7.0972]
[1720711562991,1.66766902,140.95,140.91,7.0965]
[1720711563495,1.66766902,140.95,140.91,1.0470498]
[1720711564017,1.66766902,140.95,140.9,17.7425]
[1720711564018,8.76266902,140.95,140.9,17.7425]
[1720711564253,1.66766902,140.95,140.88,1.04713367]
[1720711564423,7.0956,140.94,140.88,8.14533367]
[1720711564606,46.66766902,140.93,140.88,7.0982]
[1720711564791,1.66766902,140.92,140.88,7.0982]
[1720711564992,1.66766902,140.92,140.87,17.7464]
[1720711565193,1.66766902,140.92,140.87,24.8449]
[1720711565426,8.76426902,140.92,140.87,17.7464]
[1720711565596,45.0,140.91,140.87,17.7464]
[1720711565800,1.66766902,140.9,140.87,17.7464]
[1720711565993,1.66766902,140.89,140.85,7.0997]
[1720711566193,8.76536902,140.89,140.84,18.5759568]
[1720711566393,1.66766902,140.89,140.84,25.6760568]
[1720711566626,46.66766902,140.89,140.84,25.6760568]
[1720711567113,46.66766902,140.89,140.84,0.8261568]
[1720711567504,7.0987,140.87,140.84,0.8261568]
[1720711567718,46.66766902,140.86,140.84,0.8261568]
[1720711567916,1.66766902,140.85,140.84,0.8261568]
[1720711568591,1.66766902,140.85,140.81,24.855]
[1720711569307,1.66766902,140.85,140.8,7.1022]
[1720711569623,1.66766902,140.85,140.81,7.1017]
[1720711570414,1.66766902,140.85,140.82,7.1011]
[1720711570625,1.66766902,140.85,140.82,17.7526]
[1720711571205,8.76766902,140.85,140.79,17.7564]
[1720711571532,67.3686,140.84,140.79,24.859]
[1720711571841,1.66766902,140.83,140.79,17.7564]
[1720711572014,1.66766902,140.83,140.79,24.8587]
[1720711572335,45.0,140.84,140.81,17.7535]
[1720711572533,45.0,140.84,140.81,24.8552]
[1720711572713,45.0,140.84,140.81,17.7535]
[1720711572910,1.66766902,140.83,140.79,7.1027]
[1720711573425,1.66766902,140.83,140.78,17.7574]
[1720711573426,1.66766902,140.83,140.8,7.80743385]
[1720711573826,45.0,140.84,140.8,7.80743385]
[1720711574031,45.0,140.84,140.81,7.1016]
[1720711574219,45.0,140.84,140.82,7.80642017]
[1720711574740,1.66766902,140.87,140.82,18.45792017]
[1720711574942,1.66766902,140.87,140.83,7.80577008]
[1720711575239,1.66766902,140.88,140.85,7.0997]
[1720711575427,1.66766902,140.89,140.84,24.8501]
[1720711575621,8.76576902,140.89,140.82,7.1007]
[1720711575824,8.76576902,140.89,140.82,7.1011]
[1720711576230,7.0982,140.88,140.82,7.1011]
[1720711576430,1.66766902,140.87,140.82,7.1011]
[1720711576746,1.66766902,140.87,140.81,17.7538]
[1720711576747,8.76656902,140.87,140.81,17.7538]
[1720711576928,7.2692,140.86,140.81,17.7538]
[1720711577125,46.66766902,140.85,140.78,40.2507]
[1720711577327,53.76776902,140.85,140.78,24.8604]
[1720711577647,46.66766902,140.85,140.78,17.7573]
[1720711577814,7.2704,140.84,140.78,17.7573]
[1720711578018,46.66766902,140.83,140.78,17.7573]
[1720711578238,1.66766902,140.82,140.78,24.8605]
[1720711578444,1.66766902,140.82,140.79,7.1026]
[1720711579019,1.66766902,140.82,140.78,24.8604]
[1720711579254,1.66766902,140.82,140.75,17.7612]
[1720711579455,0.17,140.81,140.76,7.1039]
[1720711579944,45.17,140.81,140.76,7.1039]
[1720711580120,45.17,140.81,140.75,17.7612]
[1720711580121,45.17,140.81,140.75,24.8659]
[1720711580325,45.17,140.81,140.76,7.1042]
[1720711580541,45.17,140.81,140.75,24.8658]
[1720711580855,1.66766902,140.8,140.75,7.1047]
[1720711581145,1.66766902,140.79,140.74,24.8675]
[1720711581659,24.74216902,140.78,140.71,17.7663]
[1720711581835,24.74216902,140.78,140.7,0.8261568]
[1720711581836,7.1046,140.76,140.7,0.8261568]
[1720711582042,45.0,140.77,140.7,7.9333568]
[1720711582043,46.83766902,140.75,140.7,7.9333568]
[1720711582223,1.66766902,140.77,140.71,15.6149]
[1720711582553,6.5236,140.81,140.73,7.1055]
[1720711582554,8.76996902,140.8,140.73,7.1055]
[1720711582763,46.83766902,140.79,140.72,17.7653]
[1720711583328,1.83766902,140.79,140.74,7.105]
[1720711583638,1.83766902,140.79,140.73,7.1056]
[1720711583843,1.83766902,140.79,140.72,17.7653]
[1720711584033,1.66766902,140.79,140.74,17.7623]
[1720711584228,1.66766902,140.8,140.76,7.1041]
[1720711584552,6.5236,140.81,140.74,17.7623]
[1720711584553,1.66766902,140.79,140.75,7.1047]
[1720711584955,1.66766902,140.79,140.71,33.381]
[1720711585336,0.17,140.78,140.71,24.8727]
[1720711585542,1.66766902,140.77,140.72,7.1062]
[1720711585758,1.66766902,140.76,140.72,7.1062]
[1720711586059,8.77216902,140.76,140.7,7.9333568]
[1720711586245,45.0,140.75,140.7,0.8261568]
[1720711586450,1.66766902,140.74,140.7,0.8261568]
[1720711586640,1.66766902,140.73,140.7,0.8261568]
[1720711586841,1.66766902,140.72,140.7,0.8261568]
[1720711587055,1.83766902,140.74,140.7,0.8261568]
[1720711587361,46.83766902,140.74,140.7,0.8261568]
[1720711588560,7.1064,140.72,140.7,0.8261568]
[1720711588852,69.15436902,140.74,140.7,0.8261568]
[1720711588853,46.66766902,140.71,140.7,0.8261568]
[1720711589055,46.83766902,140.71,140.7,0.8261568]
[1720711589956,45.17,140.71,140.7,0.8261568]
[1720711590128,45.17,140.71,140.63,33.4747]
[1720711590329,45.17,140.71,140.64,1.06755792]
[1720711590330,1.66766902,140.7,140.64,1.06755792]
[1720711590534,0.17,140.69,140.64,1.06755792]
[1720711590758,1.66766902,140.7,140.66,7.1089]
[1720711590962,1.66766902,140.7,140.62,7.1113]
[1720711591137,1.66766902,140.7,140.65,7.1095]
[1720711591339,0.17,140.69,140.66,7.1093]
[1720711591644,0.17,140.69,140.64,17.7754]
[1720711591844,45.0,140.71,140.66,7.1093]
[1720711592044,0.17,140.7,140.66,7.1093]
[1720711592363,45.0,140.72,140.59,52.0771]
[1720711592545,2.91013208,140.73,140.59,52.0771]
[1720711592546,1.83766902,140.71,140.59,52.0771]
[1720711592746,1.66766902,140.7,140.6,100.0]
[1720711592938,1.66766902,140.7,140.66,24.8813]
[1720711593344,1.66766902,140.7,140.63,17.7766]
[1720711593547,46.66766902,140.7,140.64,1.42176619]
[1720711593767,46.66766902,140.7,140.65,7.1096]
[1720711594059,46.66766902,140.69,140.66,7.1093]
[1720711594238,1.66766902,140.7,140.67,7.1087]
[1720711595245,10.01593208,140.73,140.67,17.7714]
[1720711595246,4.5778011,140.73,140.67,17.7714]
[1720711595447,1.66766902,140.73,140.7,7.1071]
[1720711595647,1.66766902,140.73,140.69,24.8764]
[1720711595962,1.66766902,140.73,140.69,17.7687]
[1720711596132,1.66766902,140.73,140.7,7.1073]
[1720711596334,1.66766902,140.73,140.69,24.8763]
[1720711596864,1.66766902,140.73,140.65,34.3108]
[1720711597568,1.66766902,140.73,140.68,7.1082]
[1720711598060,46.66766902,140.73,140.68,7.1082]
[1720711598366,46.66766902,140.73,140.67,24.8802]
[1720711598568,53.77356902,140.73,140.67,24.8802]
[1720711598866,7.1073,140.7,140.64,17.7753]
[1720711599043,46.66766902,140.69,140.65,7.1098]
[1720711599238,45.0,140.69,140.66,7.1089]
[1720711599439,1.66766902,140.68,140.66,7.1089]
[1720711599853,1.66766902,140.68,140.65,7.1096]
[1720711600364,1.66766902,140.68,140.66,7.1093]
[1720711600760,1.66766902,140.71,140.66,7.1093]
[1720711601068,0.17,140.7,140.66,7.1093]
[1720711601246,1.83766902,140.7,140.66,7.1093]
[1720711601448,1.83766902,140.7,140.67,7.1088]
[1720711602268,1.66766902,140.7,140.67,7.1088]
[1720711602571,1.66766902,140.7,140.68,7.108]
[1720711603159,1.66766902,140.7,140.66,17.773]
[1720711603473,1.66766902,140.7,140.66,24.882]
[1720711604956,1.66766902,140.7,140.67,7.1087]
[1720711605371,22.3167,140.74,140.68,7.1082]
[1720711605576,1.66766902,140.73,140.68,7.1082]
[1720711606371,8.77376902,140.73,140.67,7.1087]
[1720711606577,22.4435,140.71,140.61,0.04214086]
[1720711606747,7.1093,140.67,140.61,0.04214086]
[1720711606942,1.83766902,140.66,140.61,0.04214086]
[1720711607456,46.83766902,140.66,140.61,7.15384086]
[1720711607972,53.94696902,140.66,140.61,0.04214086]
[1720711608146,1.66766902,140.65,140.61,0.04214086]
[1720711608454,1.66766902,140.64,140.61,0.04214086]
[1720711609342,1.66766902,140.65,140.61,0.04214086]
[1720711609554,1.66766902,140.64,140.61,0.04214086]
[1720711609955,1.66766902,140.69,140.61,17.82144086]
[1720711610262,8.77556902,140.69,140.63,24.8869]
[1720711610460,4.56823139,140.69,140.63,24.8869]
[1720711610678,4.56823139,140.69,140.61,7.15384086]
[1720711610846,7.1088,140.67,140.61,7.15384086]
[1720711611042,4.56823139,140.69,140.61,0.04214086]
[1720711611043,1.66766902,140.66,140.61,0.04214086]
[1720711611270,7.1092,140.67,140.61,7.95305421]
[1720711611472,46.66766902,140.66,140.61,7.95305421]
[1720711611855,1.66766902,140.66,140.62,7.1111]
[1720711612773,1.66766902,140.66,140.61,7.15374086]
[1720711612983,45.0,140.67,140.63,7.1108]
[1720711613275,45.0,140.67,140.62,17.7781]
[1720711613276,1.66766902,140.66,140.62,17.7781]
[1720711613652,1.66766902,140.66,140.61,0.04214086]
[1720711613853,53.77706902,140.66,140.61,0.04214086]
[1720711614064,45.0,140.65,140.61,0.04214086]
[1720711614279,1.66766902,140.64,140.61,0.04214086]
[1720711616471,0.17,140.63,140.61,0.04214086]
[1720711616794,67.4887,140.65,140.61,0.04214086]
[1720711617072,0.17,140.64,140.61,0.04214086]
[1720711617277,0.17,140.64,140.61,7.15394086]
[1720711617483,67.4887,140.65,140.61,0.04214086]
[1720711617658,1.66766902,140.64,140.61,7.15364086]
[1720711617858,1.66766902,140.64,140.61,0.04214086]